{"text_format":"1","workbook":"xlsx","n_sheets":3,"sheets":["Toelichting","XML Upload","Controles en waarden"],"not_rendered":{"charts":0,"images":0,"macros":1,"external_links":0,"defined_names":0,"comments":0,"pivot_tables":0},"unopened":[],"bounds":{"document_bytes":16777216,"sheet_cells":100000,"rows_first":2000,"rows_last":500,"rows_between":2000,"halvings":0,"cell_chars":16384,"cell_head_chars":4096},"cells_cut":0,"cells_raw":0,"read":"whole","date_system":"1900"}

{"sheet":"Toelichting","index":0,"n_rows":28,"n_cols":3,"rows_kept":28,"cut":false,"hidden":false,"merged":[]}
[]
[null,"Excel-bestand adressen en maatregelen"]
[]
[null,"Stappen:"]
[null,"-","Sla dit bestand lokaal op voordat je hem opent."]
[null,"-","Ga naar het tabblad 'XML Upload'."]
[null,"-","Vul de installatieadressen, eigenaar-bewoners en maatregelen."]
[null,"-","Vul in de cel B2 hoe u het XML bestand wilt noemen."]
[null,"-","Verwijder de bovenste voorbeeldrij."]
[null,"-","Klik op de knop 'Controleer en maak XML'. De Excel maakt nu een XML aan welke u kunt uploaden in het eLoket."]
[null,"-","Log in met eHerkenninig in het eLoket."]
[null,null,"Inloggen - Klantportaal-Site | Mijn RVO"]
[]
[null,"Toelichting:"]
[null,"-","Als u meerdere maatregelen op 1 adres wilt invoegen, maakt u 2 rijen met hetzelfde adres, met per rij een unieke maatregel."]
[null,"-","Per Techniek zijn er verschillende velden verplicht, dit is te zien aan de uitgrijzing en aan de matrix boven de maatregelen."]
[null,"-","Als u een cel selecteert onder techniek, opent er een pop-up om u te helpen een bijpassende categorie te vinden."]
[]
[null,"Let op: "]
[null,"-","Het automatisch doortrekken in Excel is mogelijk, maar kan veroorzaken dat er nummers onbedoeld worden opgehoogd bij, Huisnummers, postcodes, BSN nummers, Meldcodes, Datumvelden"]
[null,"-","Voeg geen kolommen toe, het toevoegen of verwijderen van kolommen veroorzaakt dat het bestand niet meer werkt."]
[]
[null,"Tips:"]
[null,"-","Het makkelijkst is om de maatregelen van links naar rechts in te vullen, omdat sommige velden op basis van de gekozen techniek uitgegrijsd worden."]
[null,"-","Dit Excel-formulier controleert niet op de juistheid van uw meldcodes. De meldcodes zijn echter een belangrijk onderdeel van uw aanvraag. "]
[null,null,"Controleer of u de juiste meldcodes gebruikt om later veel extra werk te voorkomen."]
[null,"-","Bij het kopieren en plakken vanuit andere bestanden kunt u het beste alleen waarden plakken."]
[null,"-","U kunt de bestandsnaam van de XML in B2 wijzigen naar bijv. De project naam. De datum en tijd van het aanmaken worden automatisch toegevoegd aan de naam, die hoeft u niet zelf toe te voegen"]

{"sheet":"XML Upload","index":1,"n_rows":64,"n_cols":25,"rows_kept":64,"cut":false,"hidden":false,"merged":[]}
["Uitvoerpad","T:\\rvo\\NLK\\ISDE_DEW\\01 Team\\_Persoonlijke map\\MartijndG\\",null,null,null,null,null,null,null,null,null,"Onderstaande velden zijn verplicht voor de volgende maatregelen:"]
["Bestandsnaam","Standaard_test.XML",null,null,null,null,null,null,null,null,null,"Isolatie","Isolatie","Isolatie","Isolatie",null,"Isolatie","Isolatie","Isolatie","Isolatie","Isolatie"]
["Datum van aanlevering",{"$f":"TODAY()","v":"2025-04-15"},null,null,null,null,null,null,null,null,null,"Warmtepomp","Warmtepomp","Warmtepomp",null,"Warmtepomp","Warmtepomp","Warmtepomp","Warmtepomp","Warmtepomp","Warmtepomp","Warmtepomp"]
["Versie","2.5",null,null,null,null,null,null,null,null,null,"Zonneboiler","Zonneboiler","Zonneboiler",null,null,"Zonneboiler","Zonneboiler","Zonneboiler","Zonneboiler","Zonneboiler"]
[null,null,null,null,null,null,null,null,null,null,null,"Elektrisch koken","Elektrisch koken",null,null,"Elektrisch koken",null,null,null,null,null,null,"Elektrisch koken"]
["Installatieadres",null,"Aantal unieke adressen",{"$f":"ROWS(_xlfn.UNIQUE(B8:D341))-1","v":0},null,"Gegevens eigenaar-bewoner",null,null,null,null,null,"Warmtenet","Warmtenet",null,null,null,null,null,null,null,null,null,"Warmtenet","Warmtenet","Warmtenet"]
["Straatnaam","Huisnummer","Huisnummer-toevoeging","Postcode","Gemeentenaam","Voorletters","Tussenvoegsels","Achternaam","BSN","Telefoonnummer","Emailadres","Techniek","Maatregel","Meldcode","opp. in M2","Aankoopdatum","Installatiedatum","Nederlands installatiebedrijf?","KvKNummer installatiebedrijf","Naam installatie- of bouwbedrijf","Adres buitenlands installaltie bedrijf","Woning van gas af?","Datum verwijdering aardgasmeter","Datum aansluiting warmtenet","Datum afkoppeling aardgasnet"]
[]
[]
[]
[]
[null,null,null,null,null,null,null,null,null,null,null,"",""]
[null,null,null,null,null,null,null,null,null,null,null,"",""]
[]
[]
[]
[]
[null,null,null,null,null,null,null,null,null,null,null,"",""]
[]
[]
[]
[null,null,null,null,null,null,null,null,null,null,null,"",""]
[]
[]
[]
[]
[]
[null,null,null,null,null,null,null,null,null,null,null,"",""]
[]
[]
[]
[]
[]
[]
[]
[]
[]
[]
[]
[]
[]
[]
[]
[]
[]
[]
[]
[]
[]
[]
[]
[null,null,null,null,null,null,null,null,null,null,null,"",""]
[null,null,null,null,null,null,null,null,null,null,null,"",""]
[null,null,null,null,null,null,null,null,null,null,null,""]
[]
[null,null,null,null,null,null,null,null,null,null,null,"",""]
[null,null,null,null,null,null,null,null,null,null,null,"",""]
[null,null,null,null,null,null,null,null,null,null,null,"",""]
[null,null,null,null,null,null,null,null,null,null,null,"",""]
[null,null,null,null,null,null,null,null,null,null,null,"",""]
[null,null,null,null,null,null,null,null,null,null,null,"",""]
[null,null,null,null,null,null,null,null,null,null,null,"",""]
[null,null,null,null,null,null,null,null,null,null,null,"",""]
[null,null,null,null,null,null,null,null,null,null,null,"",""]

{"sheet":"Controles en waarden","index":2,"n_rows":352,"n_cols":8,"rows_kept":352,"cut":false,"hidden":false,"merged":[]}
[]
[]
[]
[]
[]
[]
[]
["Categoriën","Hoort bij techniek","Technieken","T-Groep",null,"Ja/Nee",null,"Gemeenten"]
["Dakisolatie",{"$f":"C$9","v":"Dakisolatie"},"Dakisolatie","Isolatie",null,"J",null,"AA EN HUNZE"]
["Isolatie van de zolder of vlieringvloer",{"$f":"C$9","v":"Dakisolatie"},"Elektrisch koken","Elektrisch koken",null,"N",null,"AALSMEER"]
["Elek. Kookvoorziening",{"$f":"C$10","v":"Elektrisch koken"},"Gevelisolatie","Isolatie",null,null,null,"AALTEN"]
["Gevelisolatie",{"$f":"C$11","v":"Gevelisolatie"},"Glasisolatie","Isolatie",null,null,null,"ACHTKARSPELEN"]
["HR++ glas U ≤ 1,2",{"$f":"C$12","v":"Glasisolatie"},"Warmtenet","Warmtenet",null,null,null,"ALBLASSERDAM"]
["Triple glas U ≤ 0,7",{"$f":"C$12","v":"Glasisolatie"},"Spouwmuurisolatie","Isolatie",null,null,null,"ALBRANDSWAARD"]
["Isolerende deur Ud ≤ 1,0","Glasisolatie","Vloerisolatie","Isolatie",null,null,null,"ALKMAAR"]
["Isolerende deur Ud ≤ 1,5","Glasisolatie","Warmtepomp","Warmtepomp",null,null,null,"ALMELO"]
["Isolerende deur Ud ≤ 2,0","Glasisolatie","Zonneboiler","Zonneboiler",null,null,null,"ALMERE"]
["Panelen in kozijn U ≤ 0,7","Glasisolatie",null,null,null,null,null,"ALPHEN AAN DEN RIJN"]
["Panelen in kozijn U ≤ 1,2","Glasisolatie",null,null,null,null,null,"ALPHEN-CHAAM"]
["HR-glas of voor- of achterzetbeglazing U ≤ 2,0","Glasisolatie",null,null,null,null,null,"ALTENA"]
["HR-glas of voor- of achterzetbeglazing U ≤ 3,0","Glasisolatie",null,null,null,null,null,"AMELAND"]
["Panelen in kozijn U ≤ 2,0","Glasisolatie",null,null,null,null,null,"AMERSFOORT"]
["Panelen in kozijn U ≤ 3,0","Glasisolatie",null,null,null,null,null,"AMSTELVEEN"]
["Warmtenet aansluiting",{"$f":"C$13","v":"Warmtenet"},null,null,null,null,null,"AMSTERDAM"]
["Spouwmuurisolatie",{"$f":"$C$14","v":"Spouwmuurisolatie"},null,null,null,null,null,"APELDOORN"]
["Bodemisolatie",{"$f":"$C$15","v":"Vloerisolatie"},null,null,null,null,null,"ARNHEM"]
["Vloerisolatie",{"$f":"$C$15","v":"Vloerisolatie"},null,null,null,null,null,"ASSEN"]
["Warmtepomp",{"$f":"$C$16","v":"Warmtepomp"},null,null,null,null,null,"ASTEN"]
["Zonneboiler",{"$f":"$C$17","v":"Zonneboiler"},null,null,null,null,null,"BAARLE-NASSAU"]
[null,null,null,null,null,null,null,"BAARN"]
[null,null,null,null,null,null,null,"BARENDRECHT"]
[null,null,null,null,null,null,null,"BARNEVELD"]
[null,null,null,null,null,null,null,"BEEK"]
[null,null,null,null,null,null,null,"BEEKDAELEN"]
[null,null,null,null,null,null,null,"BEESEL"]
[null,null,null,null,null,null,null,"BERG EN DAL"]
[null,null,null,null,null,null,null,"BERGEIJK"]
[null,null,null,null,null,null,null,"BERGEN LB"]
[null,null,null,null,null,null,null,"BERGEN NH"]
[null,null,null,null,null,null,null,"BERGEN OP ZOOM"]
[null,null,null,null,null,null,null,"BERKELLAND"]
[null,null,null,null,null,null,null,"BERNHEZE"]
[null,null,null,null,null,null,null,"BEST"]
[null,null,null,null,null,null,null,"BEUNINGEN"]
[null,null,null,null,null,null,null,"BEVERWIJK"]
[null,null,null,null,null,null,null,"BLADEL"]
[null,null,null,null,null,null,null,"BLARICUM"]
[null,null,null,null,null,null,null,"BLOEMENDAAL"]
[null,null,null,null,null,null,null,"BODEGRAVEN-REEUWIJK"]
[null,null,null,null,null,null,null,"BOEKEL"]
[null,null,null,null,null,null,null,"BORGER-ODOORN"]
[null,null,null,null,null,null,null,"BORNE"]
[null,null,null,null,null,null,null,"BORSELE"]
[null,null,null,null,null,null,null,"BOXTEL"]
[null,null,null,null,null,null,null,"BREDA"]
[null,null,null,null,null,null,null,"BRIELLE"]
[null,null,null,null,null,null,null,"BRONCKHORST"]
[null,null,null,null,null,null,null,"BRUMMEN"]
[null,null,null,null,null,null,null,"BRUNSSUM"]
[null,null,null,null,null,null,null,"BUNNIK"]
[null,null,null,null,null,null,null,"BUNSCHOTEN"]
[null,null,null,null,null,null,null,"BUREN"]
[null,null,null,null,null,null,null,"CAPELLE AAN DEN IJSSEL"]
[null,null,null,null,null,null,null,"CASTRICUM"]
[null,null,null,null,null,null,null,"COEVORDEN"]
[null,null,null,null,null,null,null,"CRANENDONCK"]
[null,null,null,null,null,null,null,"CULEMBORG"]
[null,null,null,null,null,null,null,"DALFSEN"]
[null,null,null,null,null,null,null,"DANTUMADIEL"]
[null,null,null,null,null,null,null,"DE BILT"]
[null,null,null,null,null,null,null,"DE FRYSKE MARREN"]
[null,null,null,null,null,null,null,"DE RONDE VENEN"]
[null,null,null,null,null,null,null,"DE WOLDEN"]
[null,null,null,null,null,null,null,"DELFT"]
[null,null,null,null,null,null,null,"DEN HELDER"]
[null,null,null,null,null,null,null,"DEURNE"]
[null,null,null,null,null,null,null,"DEVENTER"]
[null,null,null,null,null,null,null,"DIEMEN"]
[null,null,null,null,null,null,null,"DIJK EN WAARD"]
[null,null,null,null,null,null,null,"DINKELLAND"]
[null,null,null,null,null,null,null,"DOESBURG"]
[null,null,null,null,null,null,null,"DOETINCHEM"]
[null,null,null,null,null,null,null,"DONGEN"]
[null,null,null,null,null,null,null,"DORDRECHT"]
[null,null,null,null,null,null,null,"DRECHTERLAND"]
[null,null,null,null,null,null,null,"DRIMMELEN"]
[null,null,null,null,null,null,null,"DRONTEN"]
[null,null,null,null,null,null,null,"DRUTEN"]
[null,null,null,null,null,null,null,"DUIVEN"]
[null,null,null,null,null,null,null,"ECHT-SUSTEREN"]
[null,null,null,null,null,null,null,"EDAM-VOLENDAM"]
[null,null,null,null,null,null,null,"EDE"]
[null,null,null,null,null,null,null,"EEMNES"]
[null,null,null,null,null,null,null,"EEMSDELTA"]
[null,null,null,null,null,null,null,"EERSEL"]
[null,null,null,null,null,null,null,"EIJSDEN-MARGRATEN"]
[null,null,null,null,null,null,null,"EINDHOVEN"]
[null,null,null,null,null,null,null,"ELBURG"]
[null,null,null,null,null,null,null,"EMMEN"]
[null,null,null,null,null,null,null,"ENKHUIZEN"]
[null,null,null,null,null,null,null,"ENSCHEDE"]
[null,null,null,null,null,null,null,"EPE"]
[null,null,null,null,null,null,null,"ERMELO"]
[null,null,null,null,null,null,null,"ETTEN-LEUR"]
[null,null,null,null,null,null,null,"GEERTRUIDENBERG"]
[null,null,null,null,null,null,null,"GELDROP-MIERLO"]
[null,null,null,null,null,null,null,"GEMERT-BAKEL"]
[null,null,null,null,null,null,null,"GENNEP"]
[null,null,null,null,null,null,null,"GILZE EN RIJEN"]
[null,null,null,null,null,null,null,"GOEREE-OVERFLAKKEE"]
[null,null,null,null,null,null,null,"GOES"]
[null,null,null,null,null,null,null,"GOIRLE"]
[null,null,null,null,null,null,null,"GOOISE MEREN"]
[null,null,null,null,null,null,null,"GORINCHEM"]
[null,null,null,null,null,null,null,"GOUDA"]
[null,null,null,null,null,null,null,"GRONINGEN"]
[null,null,null,null,null,null,null,"GULPEN-WITTEM"]
[null,null,null,null,null,null,null,"HAAKSBERGEN"]
[null,null,null,null,null,null,null,"HAARLEM"]
[null,null,null,null,null,null,null,"HAARLEMMERMEER"]
[null,null,null,null,null,null,null,"HALDERBERGE"]
[null,null,null,null,null,null,null,"HARDENBERG"]
[null,null,null,null,null,null,null,"HARDERWIJK"]
[null,null,null,null,null,null,null,"HARDINXVELD-GIESSENDAM"]
[null,null,null,null,null,null,null,"HARLINGEN"]
[null,null,null,null,null,null,null,"HATTEM"]
[null,null,null,null,null,null,null,"HEEMSKERK"]
[null,null,null,null,null,null,null,"HEEMSTEDE"]
[null,null,null,null,null,null,null,"HEERDE"]
[null,null,null,null,null,null,null,"HEERENVEEN"]
[null,null,null,null,null,null,null,"HEERLEN"]
[null,null,null,null,null,null,null,"HEEZE-LEENDE"]
[null,null,null,null,null,null,null,"HEILOO"]
[null,null,null,null,null,null,null,"HELLENDOORN"]
[null,null,null,null,null,null,null,"HELLEVOETSLUIS"]
[null,null,null,null,null,null,null,"HELMOND"]
[null,null,null,null,null,null,null,"HENDRIK-IDO-AMBACHT"]
[null,null,null,null,null,null,null,"HENGELO"]
[null,null,null,null,null,null,null,"HET HOGELAND"]
[null,null,null,null,null,null,null,"HEUMEN"]
[null,null,null,null,null,null,null,"HEUSDEN"]
[null,null,null,null,null,null,null,"HILLEGOM"]
[null,null,null,null,null,null,null,"HILVARENBEEK"]
[null,null,null,null,null,null,null,"HILVERSUM"]
[null,null,null,null,null,null,null,"HOEKSCHE WAARD"]
[null,null,null,null,null,null,null,"HOF VAN TWENTE"]
[null,null,null,null,null,null,null,"HOLLANDS KROON"]
[null,null,null,null,null,null,null,"HOOGEVEEN"]
[null,null,null,null,null,null,null,"HOORN"]
[null,null,null,null,null,null,null,"HORST AAN DE MAAS"]
[null,null,null,null,null,null,null,"HOUTEN"]
[null,null,null,null,null,null,null,"HUIZEN"]
[null,null,null,null,null,null,null,"HULST"]
[null,null,null,null,null,null,null,"IJSSELSTEIN"]
[null,null,null,null,null,null,null,"KAAG EN BRAASSEM"]
[null,null,null,null,null,null,null,"KAMPEN"]
[null,null,null,null,null,null,null,"KAPELLE"]
[null,null,null,null,null,null,null,"KATWIJK"]
[null,null,null,null,null,null,null,"KERKRADE"]
[null,null,null,null,null,null,null,"KOGGENLAND"]
[null,null,null,null,null,null,null,"KRIMPEN AAN DEN IJSSEL"]
[null,null,null,null,null,null,null,"KRIMPENERWAARD"]
[null,null,null,null,null,null,null,"LAARBEEK"]
[null,null,null,null,null,null,null,"LAND VAN CUIJK"]
[null,null,null,null,null,null,null,"LANDGRAAF"]
[null,null,null,null,null,null,null,"LANDSMEER"]
[null,null,null,null,null,null,null,"LANSINGERLAND"]
[null,null,null,null,null,null,null,"LAREN"]
[null,null,null,null,null,null,null,"LEEUWARDEN"]
[null,null,null,null,null,null,null,"LEIDEN"]
[null,null,null,null,null,null,null,"LEIDERDORP"]
[null,null,null,null,null,null,null,"LEIDSCHENDAM-VOORBURG"]
[null,null,null,null,null,null,null,"LELYSTAD"]
[null,null,null,null,null,null,null,"LEUDAL"]
[null,null,null,null,null,null,null,"LEUSDEN"]
[null,null,null,null,null,null,null,"LINGEWAARD"]
[null,null,null,null,null,null,null,"LISSE"]
[null,null,null,null,null,null,null,"LOCHEM"]
[null,null,null,null,null,null,null,"LOON OP ZAND"]
[null,null,null,null,null,null,null,"LOPIK"]
[null,null,null,null,null,null,null,"LOSSER"]
[null,null,null,null,null,null,null,"MAASDRIEL"]
[null,null,null,null,null,null,null,"MAASGOUW"]
[null,null,null,null,null,null,null,"MAASHORST"]
[null,null,null,null,null,null,null,"MAASSLUIS"]
[null,null,null,null,null,null,null,"MAASTRICHT"]
[null,null,null,null,null,null,null,"MEDEMBLIK"]
[null,null,null,null,null,null,null,"MEERSSEN"]
[null,null,null,null,null,null,null,"MEIERIJSTAD"]
[null,null,null,null,null,null,null,"MEPPEL"]
[null,null,null,null,null,null,null,"MIDDELBURG"]
[null,null,null,null,null,null,null,"MIDDEN-DELFLAND"]
[null,null,null,null,null,null,null,"MIDDEN-DRENTHE"]
[null,null,null,null,null,null,null,"MIDDEN-GRONINGEN"]
[null,null,null,null,null,null,null,"MOERDIJK"]
[null,null,null,null,null,null,null,"MOLENLANDEN"]
[null,null,null,null,null,null,null,"MONTFERLAND"]
[null,null,null,null,null,null,null,"MONTFOORT"]
[null,null,null,null,null,null,null,"MOOK EN MIDDELAAR"]
[null,null,null,null,null,null,null,"NEDER-BETUWE"]
[null,null,null,null,null,null,null,"NEDERWEERT"]
[null,null,null,null,null,null,null,"NIEUWEGEIN"]
[null,null,null,null,null,null,null,"NIEUWKOOP"]
[null,null,null,null,null,null,null,"NIJKERK"]
[null,null,null,null,null,null,null,"NIJMEGEN"]
[null,null,null,null,null,null,null,"NISSEWAARD"]
[null,null,null,null,null,null,null,"NOARDEAST-FRYSLAN"]
[null,null,null,null,null,null,null,"NOORD-BEVELAND"]
[null,null,null,null,null,null,null,"NOORDENVELD"]
[null,null,null,null,null,null,null,"NOORDOOSTPOLDER"]
[null,null,null,null,null,null,null,"NOORDWIJK"]
[null,null,null,null,null,null,null,"NUENEN CA"]
[null,null,null,null,null,null,null,"NUNSPEET"]
[null,null,null,null,null,null,null,"OEGSTGEEST"]
[null,null,null,null,null,null,null,"OIRSCHOT"]
[null,null,null,null,null,null,null,"OISTERWIJK"]
[null,null,null,null,null,null,null,"OLDAMBT"]
[null,null,null,null,null,null,null,"OLDEBROEK"]
[null,null,null,null,null,null,null,"OLDENZAAL"]
[null,null,null,null,null,null,null,"OLST-WIJHE"]
[null,null,null,null,null,null,null,"OMMEN"]
[null,null,null,null,null,null,null,"OOST GELRE"]
[null,null,null,null,null,null,null,"OOSTERHOUT"]
[null,null,null,null,null,null,null,"OOSTSTELLINGWERF"]
[null,null,null,null,null,null,null,"OOSTZAAN"]
[null,null,null,null,null,null,null,"OPMEER"]
[null,null,null,null,null,null,null,"OPSTERLAND"]
[null,null,null,null,null,null,null,"OSS"]
[null,null,null,null,null,null,null,"OUDE IJSSELSTREEK"]
[null,null,null,null,null,null,null,"OUDER-AMSTEL"]
[null,null,null,null,null,null,null,"OUDEWATER"]
[null,null,null,null,null,null,null,"OVERBETUWE"]
[null,null,null,null,null,null,null,"PAPENDRECHT"]
[null,null,null,null,null,null,null,"PEEL EN MAAS"]
[null,null,null,null,null,null,null,"PEKELA"]
[null,null,null,null,null,null,null,"PIJNACKER-NOOTDORP"]
[null,null,null,null,null,null,null,"PURMEREND"]
[null,null,null,null,null,null,null,"PUTTEN"]
[null,null,null,null,null,null,null,"RAALTE"]
[null,null,null,null,null,null,null,"REIMERSWAAL"]
[null,null,null,null,null,null,null,"RENKUM"]
[null,null,null,null,null,null,null,"RENSWOUDE"]
[null,null,null,null,null,null,null,"REUSEL-DE MIERDEN"]
[null,null,null,null,null,null,null,"RHEDEN"]
[null,null,null,null,null,null,null,"RHENEN"]
[null,null,null,null,null,null,null,"RIDDERKERK"]
[null,null,null,null,null,null,null,"RIJSSEN-HOLTEN"]
[null,null,null,null,null,null,null,"RIJSWIJK"]
[null,null,null,null,null,null,null,"ROERDALEN"]
[null,null,null,null,null,null,null,"ROERMOND"]
[null,null,null,null,null,null,null,"ROOSENDAAL"]
[null,null,null,null,null,null,null,"ROTTERDAM"]
[null,null,null,null,null,null,null,"ROZENDAAL"]
[null,null,null,null,null,null,null,"RUCPHEN"]
[null,null,null,null,null,null,null,"S GRAVENHAGE"]
[null,null,null,null,null,null,null,"S HERTOGENBOSCH"]
[null,null,null,null,null,null,null,"SCHAGEN"]
[null,null,null,null,null,null,null,"SCHERPENZEEL"]
[null,null,null,null,null,null,null,"SCHIEDAM"]
[null,null,null,null,null,null,null,"SCHIERMONNIKOOG"]
[null,null,null,null,null,null,null,"SCHOUWEN-DUIVELAND"]
[null,null,null,null,null,null,null,"SIMPELVELD"]
[null,null,null,null,null,null,null,"SINT-MICHIELSGESTEL"]
[null,null,null,null,null,null,null,"SITTARD-GELEEN"]
[null,null,null,null,null,null,null,"SLIEDRECHT"]
[null,null,null,null,null,null,null,"SLUIS"]
[null,null,null,null,null,null,null,"SMALLINGERLAND"]
[null,null,null,null,null,null,null,"SOEST"]
[null,null,null,null,null,null,null,"SOMEREN"]
[null,null,null,null,null,null,null,"SON EN BREUGEL"]
[null,null,null,null,null,null,null,"STADSKANAAL"]
[null,null,null,null,null,null,null,"STAPHORST"]
[null,null,null,null,null,null,null,"STEDE BROEC"]
[null,null,null,null,null,null,null,"STEENBERGEN"]
[null,null,null,null,null,null,null,"STEENWIJKERLAND"]
[null,null,null,null,null,null,null,"STEIN"]
[null,null,null,null,null,null,null,"STICHTSE VECHT"]
[null,null,null,null,null,null,null,"SUDWEST-FRYSLAN"]
[null,null,null,null,null,null,null,"TERNEUZEN"]
[null,null,null,null,null,null,null,"TERSCHELLING"]
[null,null,null,null,null,null,null,"TEXEL"]
[null,null,null,null,null,null,null,"TEYLINGEN"]
[null,null,null,null,null,null,null,"THOLEN"]
[null,null,null,null,null,null,null,"TIEL"]
[null,null,null,null,null,null,null,"TILBURG"]
[null,null,null,null,null,null,null,"TUBBERGEN"]
[null,null,null,null,null,null,null,"TWENTERAND"]
[null,null,null,null,null,null,null,"TYNAARLO"]
[null,null,null,null,null,null,null,"TYTSJERKSTERADIEL"]
[null,null,null,null,null,null,null,"UITGEEST"]
[null,null,null,null,null,null,null,"UITHOORN"]
[null,null,null,null,null,null,null,"URK"]
[null,null,null,null,null,null,null,"UTRECHT"]
[null,null,null,null,null,null,null,"UTRECHTSE HEUVELRUG"]
[null,null,null,null,null,null,null,"VAALS"]
[null,null,null,null,null,null,null,"VALKENBURG AAN DE GEUL"]
[null,null,null,null,null,null,null,"VALKENSWAARD"]
[null,null,null,null,null,null,null,"VEENDAM"]
[null,null,null,null,null,null,null,"VEENENDAAL"]
[null,null,null,null,null,null,null,"VEERE"]
[null,null,null,null,null,null,null,"VELDHOVEN"]
[null,null,null,null,null,null,null,"VELSEN"]
[null,null,null,null,null,null,null,"VENLO"]
[null,null,null,null,null,null,null,"VENRAY"]
[null,null,null,null,null,null,null,"VIJFHEERENLANDEN"]
[null,null,null,null,null,null,null,"VLAARDINGEN"]
[null,null,null,null,null,null,null,"VLIELAND"]
[null,null,null,null,null,null,null,"VLISSINGEN"]
[null,null,null,null,null,null,null,"VOERENDAAL"]
[null,null,null,null,null,null,null,"VOORSCHOTEN"]
[null,null,null,null,null,null,null,"VOORST"]
[null,null,null,null,null,null,null,"VUGHT"]
[null,null,null,null,null,null,null,"WAADHOEKE"]
[null,null,null,null,null,null,null,"WAALRE"]
[null,null,null,null,null,null,null,"WAALWIJK"]
[null,null,null,null,null,null,null,"WADDINXVEEN"]
[null,null,null,null,null,null,null,"WAGENINGEN"]
[null,null,null,null,null,null,null,"WASSENAAR"]
[null,null,null,null,null,null,null,"WATERLAND"]
[null,null,null,null,null,null,null,"WEERT"]
[null,null,null,null,null,null,null,"WEST BETUWE"]
[null,null,null,null,null,null,null,"WEST MAAS EN WAAL"]
[null,null,null,null,null,null,null,"WESTERKWARTIER"]
[null,null,null,null,null,null,null,"WESTERVELD"]
[null,null,null,null,null,null,null,"WESTERVOORT"]
[null,null,null,null,null,null,null,"WESTERWOLDE"]
[null,null,null,null,null,null,null,"WESTLAND"]
[null,null,null,null,null,null,null,"WESTSTELLINGWERF"]
[null,null,null,null,null,null,null,"WESTVOORNE"]
[null,null,null,null,null,null,null,"WIERDEN"]
[null,null,null,null,null,null,null,"WIJCHEN"]
[null,null,null,null,null,null,null,"WIJDEMEREN"]
[null,null,null,null,null,null,null,"WIJK BIJ DUURSTEDE"]
[null,null,null,null,null,null,null,"WINTERSWIJK"]
[null,null,null,null,null,null,null,"WOENSDRECHT"]
[null,null,null,null,null,null,null,"WOERDEN"]
[null,null,null,null,null,null,null,"WORMERLAND"]
[null,null,null,null,null,null,null,"WOUDENBERG"]
[null,null,null,null,null,null,null,"ZAANSTAD"]
[null,null,null,null,null,null,null,"ZALTBOMMEL"]
[null,null,null,null,null,null,null,"ZANDVOORT"]
[null,null,null,null,null,null,null,"ZEEWOLDE"]
[null,null,null,null,null,null,null,"ZEIST"]
[null,null,null,null,null,null,null,"ZEVENAAR"]
[null,null,null,null,null,null,null,"ZOETERMEER"]
[null,null,null,null,null,null,null,"ZOETERWOUDE"]
[null,null,null,null,null,null,null,"ZUIDPLAS"]
[null,null,null,null,null,null,null,"ZUNDERT"]
[null,null,null,null,null,null,null,"ZUTPHEN"]
[null,null,null,null,null,null,null,"ZWARTEWATERLAND"]
[null,null,null,null,null,null,null,"ZWIJNDRECHT"]
[null,null,null,null,null,null,null,"ZWOLLE"]